{"text_format":"1","workbook":"xlsx","n_sheets":2,"sheets":["TENDER PACK 2 LNG","DC2"],"not_rendered":{"charts":0,"images":1,"macros":1,"external_links":0,"defined_names":0,"comments":1,"pivot_tables":0},"unopened":[],"bounds":{"document_bytes":16777216,"sheet_cells":100000,"rows_first":2000,"rows_last":500,"rows_between":2000,"halvings":0,"cell_chars":16384,"cell_head_chars":4096},"cells_cut":0,"cells_raw":0,"read":"whole","date_system":"1900"}

{"sheet":"TENDER PACK 2 LNG","index":0,"n_rows":246,"n_cols":18,"rows_kept":246,"cut":false,"hidden":false,"merged":[[187,3,187,14],[91,2,94,2],[127,2,128,2],[165,2,167,2],[174,2,177,2],[96,3,96,6],[96,7,96,14],[97,3,97,6],[97,7,97,14],[102,3,102,6],[102,7,102,14],[104,3,104,14],[106,3,107,14],[122,3,123,14],[125,3,125,14],[98,3,98,6],[98,7,98,14],[99,3,100,6],[99,7,100,14],[101,3,101,6],[101,7,101,14],[129,2,133,2],[134,2,137,2],[138,2,140,2],[138,3,140,6],[2,3,6,14],[82,3,83,14],[85,3,85,14],[95,3,95,6],[95,7,95,14],[87,3,88,6],[87,7,88,14],[89,3,90,6],[89,7,90,14],[91,3,94,6],[91,7,94,14],[138,7,140,14],[3,16,5,16],[8,3,11,14],[13,3,14,14],[16,3,22,14],[17,16,20,16],[43,3,47,14],[43,16,45,16],[49,3,61,14],[53,16,55,16],[23,16,24,16],[24,3,24,14],[25,3,25,14],[27,3,38,14],[27,16,29,16],[42,3,42,14],[160,3,161,14],[163,3,163,14],[165,3,167,6],[165,7,167,12],[165,13,167,14],[127,3,128,6],[127,7,128,14],[129,3,133,6],[129,7,133,14],[134,3,137,6],[134,7,137,14],[165,16,167,16],[168,2,169,2],[168,3,169,6],[168,7,169,12],[168,13,169,14],[170,2,171,2],[170,3,171,6],[170,7,171,12],[170,13,171,14],[180,2,181,2],[180,3,181,6],[180,7,181,14],[182,2,183,2],[182,3,183,6],[182,7,183,12],[182,13,183,14],[178,2,179,2],[172,2,173,2],[172,3,173,6],[172,7,173,12],[172,13,173,14],[174,3,177,6],[174,7,177,12],[174,13,177,14],[178,3,179,6],[178,7,179,14],[187,2,188,2],[184,2,185,2],[194,12,194,14],[190,6,190,7],[190,8,190,9],[190,10,190,11],[198,6,198,7],[199,6,199,7],[200,6,200,7],[190,12,190,14],[191,12,191,14],[192,12,192,14],[193,12,193,14],[199,12,199,14],[200,12,200,14],[192,6,192,7],[193,6,193,7],[194,6,194,7],[190,3,190,5],[191,3,191,5],[192,3,192,5],[193,3,193,5],[194,3,194,5],[195,3,195,5],[184,3,185,6],[184,7,185,12],[184,13,185,14],[195,12,195,14],[196,12,196,14],[197,12,197,14],[198,12,198,14],[201,3,201,5],[201,12,201,14],[196,3,196,5],[197,3,197,5],[191,8,191,9],[192,8,192,9],[193,8,193,9],[194,8,194,9],[195,8,195,9],[199,8,199,9],[200,8,200,9],[191,6,191,7],[195,6,195,7],[196,6,196,7],[197,6,197,7],[198,3,198,5],[199,3,199,5],[227,2,228,2],[221,2,226,2],[229,2,232,2],[230,16,232,16],[215,3,217,6],[215,7,217,12],[215,13,217,14],[218,3,220,6],[218,7,220,12],[218,13,220,14],[229,3,232,6],[229,7,232,14],[227,3,228,6],[227,7,228,12],[227,13,228,14],[221,13,226,14],[221,7,226,12],[221,3,226,6],[215,2,217,2],[218,2,220,2],[203,3,204,6],[203,7,204,12],[203,13,204,14],[196,8,196,9],[197,8,197,9],[198,8,198,9],[210,3,211,14],[213,3,213,14],[203,2,204,2],[205,7,206,12],[205,13,206,14],[205,2,206,2],[205,3,206,6],[200,3,200,5],[189,3,189,5],[189,6,189,7],[189,8,189,9],[189,10,189,11],[189,12,189,14],[201,6,201,7],[201,8,201,9],[191,10,191,11],[192,10,192,11],[193,10,193,11],[194,10,194,11],[195,10,195,11],[196,10,196,11],[197,10,197,11],[198,10,198,11],[199,10,199,11],[200,10,200,11],[201,10,201,11]]}
[]
[]
[null,null,null,"\nTENDER PACK 2\nOPERATING MARGINS\n2021/22 GAS DELIVERY TENDER (LNG)"]
[]
[]
[]
[]
[]
[null,null,null,"This tender pack is designed for;\n• LNG Importation with Storage Facility Operators\n• Capacity Holders at LNG Importation with Storage Facilities\n"]
[]
[]
[]
[]
[null,null,null,"Issued 02 December 2020"]
[]
[]
[null,null,null,"Produced by National Grid Gas Transmission  \nNational Grid Gas plc\nNational Grid House\nWarwick Technology Park\nGallows Hill\nWarwick\nCV34 6DA"]
[]
[]
[]
[]
[]
[]
[]
[null,null,null,"Website:"]
[null,null,null,"https://www.nationalgrid.com/uk/gas-transmission/balancing/operating-margins-om"]
[]
[null,null,null,"PLEASE NOTE:\nThis document should be read in conjunction with the template Operating Margins agreements (found on the Operating Margins Homepage) and the document entitled \"Tender Guidance Document 2021/22\".\n\nSpecific guidance on how to complete these tender sheets is provided in Sections 7 & 8 of the Operating Margins Tender Guidance Document with specific cross-references to these tender sheets via superscript numbers adjacent to the relevant fields of information. Please also refer to Section 6 \"Requirements of the Tender Process\" in order to understand what must accompany the tender sheets as part of submission in order that assessment can proceed on any tenders received.\n\nTerms and phrases used in this document have the meanings set out or referred to in the template Operating Margins agreements and/or the Operating Margins Tender Guidance Document."]
[]
[]
[]
[]
[]
[]
[]
[]
[]
[]
[]
[null,null,null,null,null,null,null,null,null,null,null,null,null,null,null,null,"Page 1"]
[]
[]
[null,null,null,"IMPORTANT - PLEASE NOTE:"]
[null,null,null,"• All parts of this tender pack must be completed by all tenderers and submitted to be eligible for assessment.\n• A provider can submit up to three tender packs per facility with mutually exclusive volumes and associated tranches.\n"]
[]
[]
[]
[]
[]
[null,null,null,"Completed Tenders should be submitted by 13:00 hours (GMT) on Monday 18 January 2021 via Ariba.\n\nThe completed Tender Packs should each be uploaded under unique file names (simply add a submission number to the end of the file name).\nAfter uploading Tender Pack documents, terms and conditions must be accepted before submitting.\nSubmissions can be revised until the deadline."]
[]
[]
[]
[]
[]
[]
[]
[]
[]
[]
[]
[]
[]
[]
[]
[]
[]
[]
[]
[]
[]
[]
[]
[]
[]
[]
[]
[]
[]
[null,null,null,null,null,null,null,null,null,null,null,null,null,null,null,null,"Page 2"]
[]
[]
[null,null,null,"2021/22 OM GAS DELIVERY TENDER"]
[]
[]
[null,null,null,"Part 1: Tenderer Details"]
[]
[null,null,1,"Tenderer's Company Name\n(including company number)"]
[]
[null,null,2,"Company Representative, Job Title"]
[]
[null,null,3,"Company Representative Address\n(full address including postcode)"]
[]
[]
[]
[null,null,4,"Telephone Number"]
[null,null,5,"Facsimile Number"]
[null,null,6,"Email Address"]
[null,null,7,"Legal Agent Name"]
[null,null,8,"Legal Agent Address"]
[]
[null,null,9,"Shipper Short Code"]
[null,null,10,"Achilles Registration Number"]
[]
[null,null,null,"Part 2"]
[]
[null,null,null,"[See OM Tenderers Contract Response Form if such amendments are proposed]\nIf no amendments are proposed please go to Part 3"]
[]
[]
[]
[]
[]
[]
[]
[]
[]
[]
[]
[]
[null,null,null,null,null,null,null,null,null,null,null,null,null,null,null,null,"Page 3"]
[]
[]
[null,null,null,"2021/22 OM GAS DELIVERY TENDER"]
[]
[]
[null,null,null,"Part 3: Facility Details"]
[]
[null,null,11,"Facility Name\n(including company number)"]
[]
[null,null,12,"Facility Location\n(full address including postcode)"]
[]
[]
[]
[]
[null,null,13,"Service Provision Category",null,null,null,null,null,null,null,null,null,null,null,null,null,"Operator of LNG Importation with Storage"]
[null,null,null,null,null,null,null,null,null,null,null,null,null,null,null,null,null,"Capacity Holder of LNG Importation with Storage"]
[null,null,null,null,null,null,null,null,null,null,null,null,null,null,null,null,1]
[]
[null,null,14,"Execution Date For Tenderer’s Agreement With Facility Operator"]
[]
[]
[]
[]
[]
[]
[]
[]
[]
[]
[]
[]
[]
[]
[]
[]
[]
[]
[null,null,null,null,null,null,null,null,null,null,null,null,null,null,null,null,"Page 4"]
[]
[]
[null,null,null,"2021/22 OM GAS DELIVERY TENDER"]
[]
[]
[null,null,null,"Part 4: Deliverability & Availability"]
[]
[null,null,15,"Maximum Delivery Rate (Tendered)\n(must be greater or equal to 500,000 kWh/hour)",null,null,null,null,null,null,null,null,null,"kWh/hour"]
[]
[]
[null,null,16,"[NOT USED]",null,null,null,"[NOT USED]",null,null,null,null,null,"[NOT USED]"]
[]
[null,null,17,"Minimum Delivery Rate\n(optional) (if left blank delivery deemed at 0)",null,null,null,null,null,null,null,null,null,"kWh/hour"]
[]
[null,null,18,"Response Time",null,null,null,null,null,null,null,null,null,"Minutes"]
[]
[null,null,19,"Planned Maintenance Periods",null,null,null,null,null,null,null,null,null,"Dates"]
[]
[]
[]
[null,null,20,"Website for Service Availability / Unavailability"]
[]
[null,null,21,"Allocation Agent                                                                  (Name, Address, Tel No)"]
[]
[null,null,22,"Maximum Delivery Duration",null,null,null,null,null,null,null,null,null,"hours",null,null,2]
[]
[null,null,23,"Minimum Delivery Duration\n(Optional) (if left blank delivery deemed at 0)",null,null,null,null,null,null,null,null,null,"hours"]
[]
[]
[null,null,null,"Part 5: Charges"]
[]
[null,null,null,24,null,null,25,null,26,null,27,null,28]
[null,null,null,"LNG Procurement Tranche Number",null,null,"Service Quantity (in kWh)",null,"Estimated Necessary Delivery LNG Quantity kWh",null,"Tranche may only be accepted in full (YES / NO)",null,"Annual Service Fee (in pence per kWh per annum)"]
[null,null,null,1]
[null,null,null,2]
[null,null,null,3]
[null,null,null,4]
[null,null,null,5]
[null,null,null,6]
[null,null,null,7]
[null,null,null,8]
[null,null,null,9]
[null,null,null,10]
[null,null,null,"Total"]
[]
[null,null,29,"Minimum Inventory ",null,null,null,null,null,null,null,null,null,"kWh"]
[]
[null,null,30,"Facility Delivery Capacity \n(nominal)",null,null,null,null,null,null,null,null,null,"kWh/h"]
[]
[null,null,null,null,null,null,null,null,null,null,null,null,null,null,null,null,"Page 5"]
[]
[]
[null,null,null,"2021/22 OM GAS DELIVERY TENDER"]
[]
[]
[null,null,null,"Part 5: Charges (Continued)"]
[]
[null,null,31,"[NOT USED]",null,null,null,"[NOT USED]",null,null,null,null,null,"[NOT USED]"]
[]
[]
[null,null,32,"[NOT USED]",null,null,null,"[NOT USED]",null,null,null,null,null,"[NOT USED]"]
[]
[]
[null,null,33,"Indexed Delivery Charge\n",null,null,null,"Indexed Delivery Charge 1",null,null,null,null,null,"See Guidance Document"]
[]
[]
[]
[]
[]
[null,null,34,"Overrun Delivery Price ",null,null,null,null,null,null,null,null,null,"p/kWh"]
[]
[null,null,35,"Additional Nomination Restrictions "]
[]
[]
[]
[]
[]
[]
[]
[]
[]
[]
[]
[]
[]
[]
[]
[null,null,null,null,null,null,null,null,null,null,null,null,null,null,null,null,"Page 6"]

{"sheet":"DC2","index":1,"n_rows":13,"n_cols":43,"rows_kept":13,"cut":false,"hidden":true,"merged":[[0,2,1,9]]}
[null,null,"Data Collection Tab for Contracts Team"]
[]
["Tender Pack","Tender Ref","Tranche Ref","Main Ref",{"$f":"'TENDER PACK 2 LNG'!D88","v":"Tenderer's Company Name\n(including company number)"},{"$f":"'TENDER PACK 2 LNG'!D90","v":"Company Representative, Job Title"},{"$f":"'TENDER PACK 2 LNG'!D92","v":"Company Representative Address\n(full address including postcode)"},{"$f":"'TENDER PACK 2 LNG'!D96","v":"Telephone Number"},{"$f":"'TENDER PACK 2 LNG'!D97","v":"Facsimile Number"},{"$f":"'TENDER PACK 2 LNG'!D98","v":"Email Address"},{"$f":"'TENDER PACK 2 LNG'!D99","v":"Legal Agent Name"},{"$f":"'TENDER PACK 2 LNG'!D100","v":"Legal Agent Address"},{"$f":"'TENDER PACK 2 LNG'!D102","v":"Shipper Short Code"},{"$f":"'TENDER PACK 2 LNG'!D103","v":"Achilles Registration Number"},null,{"$f":"'TENDER PACK 2 LNG'!D128","v":"Facility Name\n(including company number)"},{"$f":"'TENDER PACK 2 LNG'!D130","v":"Facility Location\n(full address including postcode)"},{"$f":"'TENDER PACK 2 LNG'!D135","v":"Service Provision Category"},{"$f":"'TENDER PACK 2 LNG'!D139","v":"Execution Date For Tenderer’s Agreement With Facility Operator"},{"$f":"'TENDER PACK 2 LNG'!$D$166","v":"Maximum Delivery Rate (Tendered)\n(must be greater or equal to 500,000 kWh/hour)"},{"$f":"'TENDER PACK 2 LNG'!$D$169","v":"[NOT USED]"},{"$f":"'TENDER PACK 2 LNG'!$D$171","v":"Minimum Delivery Rate\n(optional) (if left blank delivery deemed at 0)"},{"$f":"'TENDER PACK 2 LNG'!$D$173","v":"Response Time"},{"$f":"'TENDER PACK 2 LNG'!$D$175","v":"Planned Maintenance Periods"},{"$f":"'TENDER PACK 2 LNG'!$D$179","v":"Website for Service Availability / Unavailability"},{"$f":"'TENDER PACK 2 LNG'!$D$181","v":"Allocation Agent                                                                  (Name, Address, Tel No)"},{"$f":"'TENDER PACK 2 LNG'!$D$183","v":"Maximum Delivery Duration"},{"$f":"'TENDER PACK 2 LNG'!$D$185","v":"Minimum Delivery Duration\n(Optional) (if left blank delivery deemed at 0)"},null,{"$f":"'TENDER PACK 2 LNG'!$D$191","v":"LNG Procurement Tranche Number"},{"$f":"'TENDER PACK 2 LNG'!$G$191","v":"Service Quantity (in kWh)"},{"$f":"'TENDER PACK 2 LNG'!$I$191","v":"Estimated Necessary Delivery LNG Quantity kWh"},"Tranche may only be accepted in full (YES / NO)",{"$f":"'TENDER PACK 2 LNG'!$M$191","v":"Annual Service Fee (in pence per kWh per annum)"},null,{"$f":"'TENDER PACK 2 LNG'!$D$204","v":"Minimum Inventory "},{"$f":"'TENDER PACK 2 LNG'!$D$206","v":"Facility Delivery Capacity \n(nominal)"},{"$f":"'TENDER PACK 2 LNG'!$D$216","v":"[NOT USED]"},{"$f":"'TENDER PACK 2 LNG'!$D$219","v":"[NOT USED]"},{"$f":"'TENDER PACK 2 LNG'!$D$222","v":"Indexed Delivery Charge\n"},{"$f":"'TENDER PACK 2 LNG'!$D$225","v":0},{"$f":"'TENDER PACK 2 LNG'!$D$228","v":"Overrun Delivery Price "},{"$f":"'TENDER PACK 2 LNG'!#REF!","v":{"$error":"#REF!"}}]
[null,null,null,{"$f":"A4&\".\"&B4&\".\"&C4","v":".."},{"$f":"'TENDER PACK 2 LNG'!$H$88","v":0},{"$f":"'TENDER PACK 2 LNG'!$H$90","v":0},{"$f":"'TENDER PACK 2 LNG'!$H$92","v":0},{"$f":"'TENDER PACK 2 LNG'!$H$96","v":0},{"$f":"'TENDER PACK 2 LNG'!$H$97","v":0},{"$f":"'TENDER PACK 2 LNG'!$H$98","v":0},{"$f":"'TENDER PACK 2 LNG'!$H$99","v":0},{"$f":"'TENDER PACK 2 LNG'!$H$100","v":0},{"$f":"'TENDER PACK 2 LNG'!$H$102","v":0},{"$f":"'TENDER PACK 2 LNG'!$H$103","v":0},null,{"$f":"'TENDER PACK 2 LNG'!$H$128","v":0},{"$f":"'TENDER PACK 2 LNG'!$H$130","v":0},{"$f":"IF('TENDER PACK 2 LNG'!$Q$137=1,\"Please Select\",IF('TENDER PACK 2 LNG'!$Q$137=3,\"Capacity Holder of LNG Importation with Storage\",IF('TENDER PACK 2 LNG'!$Q$137=2,\"Operator of LNG Importation with Storage\",0)))","v":"Please Select"},{"$f":"'TENDER PACK 2 LNG'!$H$139","v":0},{"$f":"'TENDER PACK 2 LNG'!$H$166","v":0},{"$f":"'TENDER PACK 2 LNG'!$H$169","v":"[NOT USED]"},{"$f":"'TENDER PACK 2 LNG'!$H$171","v":0},{"$f":"'TENDER PACK 2 LNG'!$H$173","v":0},{"$f":"'TENDER PACK 2 LNG'!$H$175","v":0},{"$f":"'TENDER PACK 2 LNG'!$H$179","v":0},{"$f":"'TENDER PACK 2 LNG'!$H$181","v":0},{"$f":"IF('TENDER PACK 2 LNG'!$Q$183=1,\"12\",IF('TENDER PACK 2 LNG'!$Q$183=2,\"24\",\"UNCHECKED\"))","v":"24"},{"$f":"'TENDER PACK 2 LNG'!$H$185","v":0},null,{"$f":"'TENDER PACK 2 LNG'!D192","v":1},{"$f":"'TENDER PACK 2 LNG'!G192","v":0},{"$f":"'TENDER PACK 2 LNG'!$I192","v":0},{"$f":"'TENDER PACK 2 LNG'!K192","v":0},{"$f":"'TENDER PACK 2 LNG'!M192","v":0},null,{"$f":"'TENDER PACK 2 LNG'!$H$204","v":0},{"$f":"'TENDER PACK 2 LNG'!$H$206","v":0},{"$f":"'TENDER PACK 2 LNG'!$H$216","v":"[NOT USED]"},{"$f":"'TENDER PACK 2 LNG'!$H$219","v":"[NOT USED]"},{"$f":"'TENDER PACK 2 LNG'!$H$222","v":"Indexed Delivery Charge 1"},{"$f":"'TENDER PACK 2 LNG'!$H$225","v":0},{"$f":"'TENDER PACK 2 LNG'!$H$228","v":0},{"$f":"IF('TENDER PACK 2 LNG'!#REF!=\"\",\"N\",\"Y\")","v":{"$error":"#REF!"}}]
[null,null,null,null,{"$f":"'TENDER PACK 2 LNG'!$H$88","v":0},{"$f":"'TENDER PACK 2 LNG'!$H$90","v":0},{"$f":"'TENDER PACK 2 LNG'!$H$92","v":0},{"$f":"'TENDER PACK 2 LNG'!$H$96","v":0},{"$f":"'TENDER PACK 2 LNG'!$H$97","v":0},{"$f":"'TENDER PACK 2 LNG'!$H$98","v":0},{"$f":"'TENDER PACK 2 LNG'!$H$99","v":0},{"$f":"'TENDER PACK 2 LNG'!$H$100","v":0},{"$f":"'TENDER PACK 2 LNG'!$H$102","v":0},{"$f":"'TENDER PACK 2 LNG'!$H$103","v":0},null,{"$f":"'TENDER PACK 2 LNG'!$H$128","v":0},{"$f":"'TENDER PACK 2 LNG'!$H$130","v":0},{"$f":"IF('TENDER PACK 2 LNG'!$Q$137=1,\"Please Select\",IF('TENDER PACK 2 LNG'!$Q$137=3,\"Capacity Holder of LNG Importation with Storage\",IF('TENDER PACK 2 LNG'!$Q$137=2,\"Operator of LNG Importation with Storage\",0)))","v":"Please Select"},{"$f":"'TENDER PACK 2 LNG'!$H$139","v":0},{"$f":"'TENDER PACK 2 LNG'!$H$166","v":0},{"$f":"'TENDER PACK 2 LNG'!$H$169","v":"[NOT USED]"},{"$f":"'TENDER PACK 2 LNG'!$H$171","v":0},{"$f":"'TENDER PACK 2 LNG'!$H$173","v":0},{"$f":"'TENDER PACK 2 LNG'!$H$175","v":0},{"$f":"'TENDER PACK 2 LNG'!$H$179","v":0},{"$f":"'TENDER PACK 2 LNG'!$H$181","v":0},{"$f":"IF('TENDER PACK 2 LNG'!$Q$183=1,\"12\",IF('TENDER PACK 2 LNG'!$Q$183=2,\"24\",\"UNCHECKED\"))","v":"24"},{"$f":"'TENDER PACK 2 LNG'!$H$185","v":0},null,{"$f":"'TENDER PACK 2 LNG'!D193","v":2},{"$f":"'TENDER PACK 2 LNG'!G193","v":0},{"$f":"'TENDER PACK 2 LNG'!$I193","v":0},{"$f":"'TENDER PACK 2 LNG'!K193","v":0},{"$f":"'TENDER PACK 2 LNG'!M193","v":0},null,{"$f":"'TENDER PACK 2 LNG'!$H$204","v":0},{"$f":"'TENDER PACK 2 LNG'!$H$206","v":0},{"$f":"'TENDER PACK 2 LNG'!$H$216","v":"[NOT USED]"},{"$f":"'TENDER PACK 2 LNG'!$H$219","v":"[NOT USED]"},{"$f":"'TENDER PACK 2 LNG'!$H$222","v":"Indexed Delivery Charge 1"},{"$f":"'TENDER PACK 2 LNG'!$H$225","v":0},{"$f":"'TENDER PACK 2 LNG'!$H$228","v":0},{"$f":"IF('TENDER PACK 2 LNG'!#REF!=\"\",\"N\",\"Y\")","v":{"$error":"#REF!"}}]
[null,null,null,null,{"$f":"'TENDER PACK 2 LNG'!$H$88","v":0},{"$f":"'TENDER PACK 2 LNG'!$H$90","v":0},{"$f":"'TENDER PACK 2 LNG'!$H$92","v":0},{"$f":"'TENDER PACK 2 LNG'!$H$96","v":0},{"$f":"'TENDER PACK 2 LNG'!$H$97","v":0},{"$f":"'TENDER PACK 2 LNG'!$H$98","v":0},{"$f":"'TENDER PACK 2 LNG'!$H$99","v":0},{"$f":"'TENDER PACK 2 LNG'!$H$100","v":0},{"$f":"'TENDER PACK 2 LNG'!$H$102","v":0},{"$f":"'TENDER PACK 2 LNG'!$H$103","v":0},null,{"$f":"'TENDER PACK 2 LNG'!$H$128","v":0},{"$f":"'TENDER PACK 2 LNG'!$H$130","v":0},{"$f":"IF('TENDER PACK 2 LNG'!$Q$137=1,\"Please Select\",IF('TENDER PACK 2 LNG'!$Q$137=3,\"Capacity Holder of LNG Importation with Storage\",IF('TENDER PACK 2 LNG'!$Q$137=2,\"Operator of LNG Importation with Storage\",0)))","v":"Please Select"},{"$f":"'TENDER PACK 2 LNG'!$H$139","v":0},{"$f":"'TENDER PACK 2 LNG'!$H$166","v":0},{"$f":"'TENDER PACK 2 LNG'!$H$169","v":"[NOT USED]"},{"$f":"'TENDER PACK 2 LNG'!$H$171","v":0},{"$f":"'TENDER PACK 2 LNG'!$H$173","v":0},{"$f":"'TENDER PACK 2 LNG'!$H$175","v":0},{"$f":"'TENDER PACK 2 LNG'!$H$179","v":0},{"$f":"'TENDER PACK 2 LNG'!$H$181","v":0},{"$f":"IF('TENDER PACK 2 LNG'!$Q$183=1,\"12\",IF('TENDER PACK 2 LNG'!$Q$183=2,\"24\",\"UNCHECKED\"))","v":"24"},{"$f":"'TENDER PACK 2 LNG'!$H$185","v":0},null,{"$f":"'TENDER PACK 2 LNG'!D194","v":3},{"$f":"'TENDER PACK 2 LNG'!G194","v":0},{"$f":"'TENDER PACK 2 LNG'!$I194","v":0},{"$f":"'TENDER PACK 2 LNG'!K194","v":0},{"$f":"'TENDER PACK 2 LNG'!M194","v":0},null,{"$f":"'TENDER PACK 2 LNG'!$H$204","v":0},{"$f":"'TENDER PACK 2 LNG'!$H$206","v":0},{"$f":"'TENDER PACK 2 LNG'!$H$216","v":"[NOT USED]"},{"$f":"'TENDER PACK 2 LNG'!$H$219","v":"[NOT USED]"},{"$f":"'TENDER PACK 2 LNG'!$H$222","v":"Indexed Delivery Charge 1"},{"$f":"'TENDER PACK 2 LNG'!$H$225","v":0},{"$f":"'TENDER PACK 2 LNG'!$H$228","v":0},{"$f":"IF('TENDER PACK 2 LNG'!#REF!=\"\",\"N\",\"Y\")","v":{"$error":"#REF!"}}]
[null,null,null,null,{"$f":"'TENDER PACK 2 LNG'!$H$88","v":0},{"$f":"'TENDER PACK 2 LNG'!$H$90","v":0},{"$f":"'TENDER PACK 2 LNG'!$H$92","v":0},{"$f":"'TENDER PACK 2 LNG'!$H$96","v":0},{"$f":"'TENDER PACK 2 LNG'!$H$97","v":0},{"$f":"'TENDER PACK 2 LNG'!$H$98","v":0},{"$f":"'TENDER PACK 2 LNG'!$H$99","v":0},{"$f":"'TENDER PACK 2 LNG'!$H$100","v":0},{"$f":"'TENDER PACK 2 LNG'!$H$102","v":0},{"$f":"'TENDER PACK 2 LNG'!$H$103","v":0},null,{"$f":"'TENDER PACK 2 LNG'!$H$128","v":0},{"$f":"'TENDER PACK 2 LNG'!$H$130","v":0},{"$f":"IF('TENDER PACK 2 LNG'!$Q$137=1,\"Please Select\",IF('TENDER PACK 2 LNG'!$Q$137=3,\"Capacity Holder of LNG Importation with Storage\",IF('TENDER PACK 2 LNG'!$Q$137=2,\"Operator of LNG Importation with Storage\",0)))","v":"Please Select"},{"$f":"'TENDER PACK 2 LNG'!$H$139","v":0},{"$f":"'TENDER PACK 2 LNG'!$H$166","v":0},{"$f":"'TENDER PACK 2 LNG'!$H$169","v":"[NOT USED]"},{"$f":"'TENDER PACK 2 LNG'!$H$171","v":0},{"$f":"'TENDER PACK 2 LNG'!$H$173","v":0},{"$f":"'TENDER PACK 2 LNG'!$H$175","v":0},{"$f":"'TENDER PACK 2 LNG'!$H$179","v":0},{"$f":"'TENDER PACK 2 LNG'!$H$181","v":0},{"$f":"IF('TENDER PACK 2 LNG'!$Q$183=1,\"12\",IF('TENDER PACK 2 LNG'!$Q$183=2,\"24\",\"UNCHECKED\"))","v":"24"},{"$f":"'TENDER PACK 2 LNG'!$H$185","v":0},null,{"$f":"'TENDER PACK 2 LNG'!D195","v":4},{"$f":"'TENDER PACK 2 LNG'!G195","v":0},{"$f":"'TENDER PACK 2 LNG'!$I195","v":0},{"$f":"'TENDER PACK 2 LNG'!K195","v":0},{"$f":"'TENDER PACK 2 LNG'!M195","v":0},null,{"$f":"'TENDER PACK 2 LNG'!$H$204","v":0},{"$f":"'TENDER PACK 2 LNG'!$H$206","v":0},{"$f":"'TENDER PACK 2 LNG'!$H$216","v":"[NOT USED]"},{"$f":"'TENDER PACK 2 LNG'!$H$219","v":"[NOT USED]"},{"$f":"'TENDER PACK 2 LNG'!$H$222","v":"Indexed Delivery Charge 1"},{"$f":"'TENDER PACK 2 LNG'!$H$225","v":0},{"$f":"'TENDER PACK 2 LNG'!$H$228","v":0},{"$f":"IF('TENDER PACK 2 LNG'!#REF!=\"\",\"N\",\"Y\")","v":{"$error":"#REF!"}}]
[null,null,null,null,{"$f":"'TENDER PACK 2 LNG'!$H$88","v":0},{"$f":"'TENDER PACK 2 LNG'!$H$90","v":0},{"$f":"'TENDER PACK 2 LNG'!$H$92","v":0},{"$f":"'TENDER PACK 2 LNG'!$H$96","v":0},{"$f":"'TENDER PACK 2 LNG'!$H$97","v":0},{"$f":"'TENDER PACK 2 LNG'!$H$98","v":0},{"$f":"'TENDER PACK 2 LNG'!$H$99","v":0},{"$f":"'TENDER PACK 2 LNG'!$H$100","v":0},{"$f":"'TENDER PACK 2 LNG'!$H$102","v":0},{"$f":"'TENDER PACK 2 LNG'!$H$103","v":0},null,{"$f":"'TENDER PACK 2 LNG'!$H$128","v":0},{"$f":"'TENDER PACK 2 LNG'!$H$130","v":0},{"$f":"IF('TENDER PACK 2 LNG'!$Q$137=1,\"Please Select\",IF('TENDER PACK 2 LNG'!$Q$137=3,\"Capacity Holder of LNG Importation with Storage\",IF('TENDER PACK 2 LNG'!$Q$137=2,\"Operator of LNG Importation with Storage\",0)))","v":"Please Select"},{"$f":"'TENDER PACK 2 LNG'!$H$139","v":0},{"$f":"'TENDER PACK 2 LNG'!$H$166","v":0},{"$f":"'TENDER PACK 2 LNG'!$H$169","v":"[NOT USED]"},{"$f":"'TENDER PACK 2 LNG'!$H$171","v":0},{"$f":"'TENDER PACK 2 LNG'!$H$173","v":0},{"$f":"'TENDER PACK 2 LNG'!$H$175","v":0},{"$f":"'TENDER PACK 2 LNG'!$H$179","v":0},{"$f":"'TENDER PACK 2 LNG'!$H$181","v":0},{"$f":"IF('TENDER PACK 2 LNG'!$Q$183=1,\"12\",IF('TENDER PACK 2 LNG'!$Q$183=2,\"24\",\"UNCHECKED\"))","v":"24"},{"$f":"'TENDER PACK 2 LNG'!$H$185","v":0},null,{"$f":"'TENDER PACK 2 LNG'!D196","v":5},{"$f":"'TENDER PACK 2 LNG'!G196","v":0},{"$f":"'TENDER PACK 2 LNG'!$I196","v":0},{"$f":"'TENDER PACK 2 LNG'!K196","v":0},{"$f":"'TENDER PACK 2 LNG'!M196","v":0},null,{"$f":"'TENDER PACK 2 LNG'!$H$204","v":0},{"$f":"'TENDER PACK 2 LNG'!$H$206","v":0},{"$f":"'TENDER PACK 2 LNG'!$H$216","v":"[NOT USED]"},{"$f":"'TENDER PACK 2 LNG'!$H$219","v":"[NOT USED]"},{"$f":"'TENDER PACK 2 LNG'!$H$222","v":"Indexed Delivery Charge 1"},{"$f":"'TENDER PACK 2 LNG'!$H$225","v":0},{"$f":"'TENDER PACK 2 LNG'!$H$228","v":0},{"$f":"IF('TENDER PACK 2 LNG'!#REF!=\"\",\"N\",\"Y\")","v":{"$error":"#REF!"}}]
[null,null,null,null,{"$f":"'TENDER PACK 2 LNG'!$H$88","v":0},{"$f":"'TENDER PACK 2 LNG'!$H$90","v":0},{"$f":"'TENDER PACK 2 LNG'!$H$92","v":0},{"$f":"'TENDER PACK 2 LNG'!$H$96","v":0},{"$f":"'TENDER PACK 2 LNG'!$H$97","v":0},{"$f":"'TENDER PACK 2 LNG'!$H$98","v":0},{"$f":"'TENDER PACK 2 LNG'!$H$99","v":0},{"$f":"'TENDER PACK 2 LNG'!$H$100","v":0},{"$f":"'TENDER PACK 2 LNG'!$H$102","v":0},{"$f":"'TENDER PACK 2 LNG'!$H$103","v":0},null,{"$f":"'TENDER PACK 2 LNG'!$H$128","v":0},{"$f":"'TENDER PACK 2 LNG'!$H$130","v":0},{"$f":"IF('TENDER PACK 2 LNG'!$Q$137=1,\"Please Select\",IF('TENDER PACK 2 LNG'!$Q$137=3,\"Capacity Holder of LNG Importation with Storage\",IF('TENDER PACK 2 LNG'!$Q$137=2,\"Operator of LNG Importation with Storage\",0)))","v":"Please Select"},{"$f":"'TENDER PACK 2 LNG'!$H$139","v":0},{"$f":"'TENDER PACK 2 LNG'!$H$166","v":0},{"$f":"'TENDER PACK 2 LNG'!$H$169","v":"[NOT USED]"},{"$f":"'TENDER PACK 2 LNG'!$H$171","v":0},{"$f":"'TENDER PACK 2 LNG'!$H$173","v":0},{"$f":"'TENDER PACK 2 LNG'!$H$175","v":0},{"$f":"'TENDER PACK 2 LNG'!$H$179","v":0},{"$f":"'TENDER PACK 2 LNG'!$H$181","v":0},{"$f":"IF('TENDER PACK 2 LNG'!$Q$183=1,\"12\",IF('TENDER PACK 2 LNG'!$Q$183=2,\"24\",\"UNCHECKED\"))","v":"24"},{"$f":"'TENDER PACK 2 LNG'!$H$185","v":0},null,{"$f":"'TENDER PACK 2 LNG'!D197","v":6},{"$f":"'TENDER PACK 2 LNG'!G197","v":0},{"$f":"'TENDER PACK 2 LNG'!$I197","v":0},{"$f":"'TENDER PACK 2 LNG'!K197","v":0},{"$f":"'TENDER PACK 2 LNG'!M197","v":0},null,{"$f":"'TENDER PACK 2 LNG'!$H$204","v":0},{"$f":"'TENDER PACK 2 LNG'!$H$206","v":0},{"$f":"'TENDER PACK 2 LNG'!$H$216","v":"[NOT USED]"},{"$f":"'TENDER PACK 2 LNG'!$H$219","v":"[NOT USED]"},{"$f":"'TENDER PACK 2 LNG'!$H$222","v":"Indexed Delivery Charge 1"},{"$f":"'TENDER PACK 2 LNG'!$H$225","v":0},{"$f":"'TENDER PACK 2 LNG'!$H$228","v":0},{"$f":"IF('TENDER PACK 2 LNG'!#REF!=\"\",\"N\",\"Y\")","v":{"$error":"#REF!"}}]
[null,null,null,null,{"$f":"'TENDER PACK 2 LNG'!$H$88","v":0},{"$f":"'TENDER PACK 2 LNG'!$H$90","v":0},{"$f":"'TENDER PACK 2 LNG'!$H$92","v":0},{"$f":"'TENDER PACK 2 LNG'!$H$96","v":0},{"$f":"'TENDER PACK 2 LNG'!$H$97","v":0},{"$f":"'TENDER PACK 2 LNG'!$H$98","v":0},{"$f":"'TENDER PACK 2 LNG'!$H$99","v":0},{"$f":"'TENDER PACK 2 LNG'!$H$100","v":0},{"$f":"'TENDER PACK 2 LNG'!$H$102","v":0},{"$f":"'TENDER PACK 2 LNG'!$H$103","v":0},null,{"$f":"'TENDER PACK 2 LNG'!$H$128","v":0},{"$f":"'TENDER PACK 2 LNG'!$H$130","v":0},{"$f":"IF('TENDER PACK 2 LNG'!$Q$137=1,\"Please Select\",IF('TENDER PACK 2 LNG'!$Q$137=3,\"Capacity Holder of LNG Importation with Storage\",IF('TENDER PACK 2 LNG'!$Q$137=2,\"Operator of LNG Importation with Storage\",0)))","v":"Please Select"},{"$f":"'TENDER PACK 2 LNG'!$H$139","v":0},{"$f":"'TENDER PACK 2 LNG'!$H$166","v":0},{"$f":"'TENDER PACK 2 LNG'!$H$169","v":"[NOT USED]"},{"$f":"'TENDER PACK 2 LNG'!$H$171","v":0},{"$f":"'TENDER PACK 2 LNG'!$H$173","v":0},{"$f":"'TENDER PACK 2 LNG'!$H$175","v":0},{"$f":"'TENDER PACK 2 LNG'!$H$179","v":0},{"$f":"'TENDER PACK 2 LNG'!$H$181","v":0},{"$f":"IF('TENDER PACK 2 LNG'!$Q$183=1,\"12\",IF('TENDER PACK 2 LNG'!$Q$183=2,\"24\",\"UNCHECKED\"))","v":"24"},{"$f":"'TENDER PACK 2 LNG'!$H$185","v":0},null,{"$f":"'TENDER PACK 2 LNG'!D198","v":7},{"$f":"'TENDER PACK 2 LNG'!G198","v":0},{"$f":"'TENDER PACK 2 LNG'!$I198","v":0},{"$f":"'TENDER PACK 2 LNG'!K198","v":0},{"$f":"'TENDER PACK 2 LNG'!M198","v":0},null,{"$f":"'TENDER PACK 2 LNG'!$H$204","v":0},{"$f":"'TENDER PACK 2 LNG'!$H$206","v":0},{"$f":"'TENDER PACK 2 LNG'!$H$216","v":"[NOT USED]"},{"$f":"'TENDER PACK 2 LNG'!$H$219","v":"[NOT USED]"},{"$f":"'TENDER PACK 2 LNG'!$H$222","v":"Indexed Delivery Charge 1"},{"$f":"'TENDER PACK 2 LNG'!$H$225","v":0},{"$f":"'TENDER PACK 2 LNG'!$H$228","v":0},{"$f":"IF('TENDER PACK 2 LNG'!#REF!=\"\",\"N\",\"Y\")","v":{"$error":"#REF!"}}]
[null,null,null,null,{"$f":"'TENDER PACK 2 LNG'!$H$88","v":0},{"$f":"'TENDER PACK 2 LNG'!$H$90","v":0},{"$f":"'TENDER PACK 2 LNG'!$H$92","v":0},{"$f":"'TENDER PACK 2 LNG'!$H$96","v":0},{"$f":"'TENDER PACK 2 LNG'!$H$97","v":0},{"$f":"'TENDER PACK 2 LNG'!$H$98","v":0},{"$f":"'TENDER PACK 2 LNG'!$H$99","v":0},{"$f":"'TENDER PACK 2 LNG'!$H$100","v":0},{"$f":"'TENDER PACK 2 LNG'!$H$102","v":0},{"$f":"'TENDER PACK 2 LNG'!$H$103","v":0},null,{"$f":"'TENDER PACK 2 LNG'!$H$128","v":0},{"$f":"'TENDER PACK 2 LNG'!$H$130","v":0},{"$f":"IF('TENDER PACK 2 LNG'!$Q$137=1,\"Please Select\",IF('TENDER PACK 2 LNG'!$Q$137=3,\"Capacity Holder of LNG Importation with Storage\",IF('TENDER PACK 2 LNG'!$Q$137=2,\"Operator of LNG Importation with Storage\",0)))","v":"Please Select"},{"$f":"'TENDER PACK 2 LNG'!$H$139","v":0},{"$f":"'TENDER PACK 2 LNG'!$H$166","v":0},{"$f":"'TENDER PACK 2 LNG'!$H$169","v":"[NOT USED]"},{"$f":"'TENDER PACK 2 LNG'!$H$171","v":0},{"$f":"'TENDER PACK 2 LNG'!$H$173","v":0},{"$f":"'TENDER PACK 2 LNG'!$H$175","v":0},{"$f":"'TENDER PACK 2 LNG'!$H$179","v":0},{"$f":"'TENDER PACK 2 LNG'!$H$181","v":0},{"$f":"IF('TENDER PACK 2 LNG'!$Q$183=1,\"12\",IF('TENDER PACK 2 LNG'!$Q$183=2,\"24\",\"UNCHECKED\"))","v":"24"},{"$f":"'TENDER PACK 2 LNG'!$H$185","v":0},null,{"$f":"'TENDER PACK 2 LNG'!D199","v":8},{"$f":"'TENDER PACK 2 LNG'!G199","v":0},{"$f":"'TENDER PACK 2 LNG'!$I199","v":0},{"$f":"'TENDER PACK 2 LNG'!K199","v":0},{"$f":"'TENDER PACK 2 LNG'!M199","v":0},null,{"$f":"'TENDER PACK 2 LNG'!$H$204","v":0},{"$f":"'TENDER PACK 2 LNG'!$H$206","v":0},{"$f":"'TENDER PACK 2 LNG'!$H$216","v":"[NOT USED]"},{"$f":"'TENDER PACK 2 LNG'!$H$219","v":"[NOT USED]"},{"$f":"'TENDER PACK 2 LNG'!$H$222","v":"Indexed Delivery Charge 1"},{"$f":"'TENDER PACK 2 LNG'!$H$225","v":0},{"$f":"'TENDER PACK 2 LNG'!$H$228","v":0},{"$f":"IF('TENDER PACK 2 LNG'!#REF!=\"\",\"N\",\"Y\")","v":{"$error":"#REF!"}}]
[null,null,null,null,{"$f":"'TENDER PACK 2 LNG'!$H$88","v":0},{"$f":"'TENDER PACK 2 LNG'!$H$90","v":0},{"$f":"'TENDER PACK 2 LNG'!$H$92","v":0},{"$f":"'TENDER PACK 2 LNG'!$H$96","v":0},{"$f":"'TENDER PACK 2 LNG'!$H$97","v":0},{"$f":"'TENDER PACK 2 LNG'!$H$98","v":0},{"$f":"'TENDER PACK 2 LNG'!$H$99","v":0},{"$f":"'TENDER PACK 2 LNG'!$H$100","v":0},{"$f":"'TENDER PACK 2 LNG'!$H$102","v":0},{"$f":"'TENDER PACK 2 LNG'!$H$103","v":0},null,{"$f":"'TENDER PACK 2 LNG'!$H$128","v":0},{"$f":"'TENDER PACK 2 LNG'!$H$130","v":0},{"$f":"IF('TENDER PACK 2 LNG'!$Q$137=1,\"Please Select\",IF('TENDER PACK 2 LNG'!$Q$137=3,\"Capacity Holder of LNG Importation with Storage\",IF('TENDER PACK 2 LNG'!$Q$137=2,\"Operator of LNG Importation with Storage\",0)))","v":"Please Select"},{"$f":"'TENDER PACK 2 LNG'!$H$139","v":0},{"$f":"'TENDER PACK 2 LNG'!$H$166","v":0},{"$f":"'TENDER PACK 2 LNG'!$H$169","v":"[NOT USED]"},{"$f":"'TENDER PACK 2 LNG'!$H$171","v":0},{"$f":"'TENDER PACK 2 LNG'!$H$173","v":0},{"$f":"'TENDER PACK 2 LNG'!$H$175","v":0},{"$f":"'TENDER PACK 2 LNG'!$H$179","v":0},{"$f":"'TENDER PACK 2 LNG'!$H$181","v":0},{"$f":"IF('TENDER PACK 2 LNG'!$Q$183=1,\"12\",IF('TENDER PACK 2 LNG'!$Q$183=2,\"24\",\"UNCHECKED\"))","v":"24"},{"$f":"'TENDER PACK 2 LNG'!$H$185","v":0},null,{"$f":"'TENDER PACK 2 LNG'!D200","v":9},{"$f":"'TENDER PACK 2 LNG'!G200","v":0},{"$f":"'TENDER PACK 2 LNG'!$I200","v":0},{"$f":"'TENDER PACK 2 LNG'!K200","v":0},{"$f":"'TENDER PACK 2 LNG'!M200","v":0},null,{"$f":"'TENDER PACK 2 LNG'!$H$204","v":0},{"$f":"'TENDER PACK 2 LNG'!$H$206","v":0},{"$f":"'TENDER PACK 2 LNG'!$H$216","v":"[NOT USED]"},{"$f":"'TENDER PACK 2 LNG'!$H$219","v":"[NOT USED]"},{"$f":"'TENDER PACK 2 LNG'!$H$222","v":"Indexed Delivery Charge 1"},{"$f":"'TENDER PACK 2 LNG'!$H$225","v":0},{"$f":"'TENDER PACK 2 LNG'!$H$228","v":0},{"$f":"IF('TENDER PACK 2 LNG'!#REF!=\"\",\"N\",\"Y\")","v":{"$error":"#REF!"}}]
[null,null,null,null,{"$f":"'TENDER PACK 2 LNG'!$H$88","v":0},{"$f":"'TENDER PACK 2 LNG'!$H$90","v":0},{"$f":"'TENDER PACK 2 LNG'!$H$92","v":0},{"$f":"'TENDER PACK 2 LNG'!$H$96","v":0},{"$f":"'TENDER PACK 2 LNG'!$H$97","v":0},{"$f":"'TENDER PACK 2 LNG'!$H$98","v":0},{"$f":"'TENDER PACK 2 LNG'!$H$99","v":0},{"$f":"'TENDER PACK 2 LNG'!$H$100","v":0},{"$f":"'TENDER PACK 2 LNG'!$H$102","v":0},{"$f":"'TENDER PACK 2 LNG'!$H$103","v":0},null,{"$f":"'TENDER PACK 2 LNG'!$H$128","v":0},{"$f":"'TENDER PACK 2 LNG'!$H$130","v":0},{"$f":"IF('TENDER PACK 2 LNG'!$Q$137=1,\"Please Select\",IF('TENDER PACK 2 LNG'!$Q$137=3,\"Capacity Holder of LNG Importation with Storage\",IF('TENDER PACK 2 LNG'!$Q$137=2,\"Operator of LNG Importation with Storage\",0)))","v":"Please Select"},{"$f":"'TENDER PACK 2 LNG'!$H$139","v":0},{"$f":"'TENDER PACK 2 LNG'!$H$166","v":0},{"$f":"'TENDER PACK 2 LNG'!$H$169","v":"[NOT USED]"},{"$f":"'TENDER PACK 2 LNG'!$H$171","v":0},{"$f":"'TENDER PACK 2 LNG'!$H$173","v":0},{"$f":"'TENDER PACK 2 LNG'!$H$175","v":0},{"$f":"'TENDER PACK 2 LNG'!$H$179","v":0},{"$f":"'TENDER PACK 2 LNG'!$H$181","v":0},{"$f":"IF('TENDER PACK 2 LNG'!$Q$183=1,\"12\",IF('TENDER PACK 2 LNG'!$Q$183=2,\"24\",\"UNCHECKED\"))","v":"24"},{"$f":"'TENDER PACK 2 LNG'!$H$185","v":0},null,{"$f":"'TENDER PACK 2 LNG'!D201","v":10},{"$f":"'TENDER PACK 2 LNG'!G201","v":0},{"$f":"'TENDER PACK 2 LNG'!$I201","v":0},{"$f":"'TENDER PACK 2 LNG'!K201","v":0},{"$f":"'TENDER PACK 2 LNG'!M201","v":0},null,{"$f":"'TENDER PACK 2 LNG'!$H$204","v":0},{"$f":"'TENDER PACK 2 LNG'!$H$206","v":0},{"$f":"'TENDER PACK 2 LNG'!$H$216","v":"[NOT USED]"},{"$f":"'TENDER PACK 2 LNG'!$H$219","v":"[NOT USED]"},{"$f":"'TENDER PACK 2 LNG'!$H$222","v":"Indexed Delivery Charge 1"},{"$f":"'TENDER PACK 2 LNG'!$H$225","v":0},{"$f":"'TENDER PACK 2 LNG'!$H$228","v":0},{"$f":"IF('TENDER PACK 2 LNG'!#REF!=\"\",\"N\",\"Y\")","v":{"$error":"#REF!"}}]